[Event "Titled Tuesday Blitz November 01 Early 2022"]
[White "Terry, Renato"]
[Black "Papasimakopoulos, Alexandros"]
[WhiteFideId "3803457"]
[BlackFideId "4244125"]
[WhiteElo "2577"]
[BlackElo "2357"]
[Result "1-0"]
[Round "09"]
[TimeControl "180+1"]
[Date "2022.11.01"]
[WhiteClock "0:00:33"]
[BlackClock "0:00:07"]

1. d4 {[%clk 0:03:00]}  e6 {[%clk 0:02:59]} 2. Nf3 {[%clk 0:03:00]}  b6 {[%clk 0:02:59]} 3. g3 {[%clk 0:03:00]}  Bb7 {[%clk 0:02:59]} 4. Bg2 {[%clk 0:03:00]}  Nf6 {[%clk 0:02:59]} 5. c4 {[%clk 0:03:00]}  Bb4+ {[%clk 0:02:58]} 6. Nbd2 {[%clk 0:02:59]}  O-O {[%clk 0:02:58]} 7. O-O {[%clk 0:02:59]}  Bxd2 {[%clk 0:02:58]} 8. Qxd2 {[%clk 0:03:00]}  Be4 {[%clk 0:02:56]} 9. b3 {[%clk 0:02:58]}  d6 {[%clk 0:02:57]} 10. Bb2 {[%clk 0:02:58]}  Nbd7 {[%clk 0:02:57]} 11. Bh3 {[%clk 0:02:56]}  a5 {[%clk 0:02:54]} 12. Nh4 {[%clk 0:02:53]}  d5 {[%clk 0:02:24]} 13. f3 {[%clk 0:02:52]}  Bg6 {[%clk 0:02:22]} 14. Nxg6 {[%clk 0:02:50]}  hxg6 {[%clk 0:02:22]} 15. Rad1 {[%clk 0:02:38]}  a4 {[%clk 0:02:22]} 16. Rfe1 {[%clk 0:02:36]}  axb3 {[%clk 0:02:22]} 17. axb3 {[%clk 0:02:37]}  c5 {[%clk 0:02:05]} 18. e4 {[%clk 0:02:28]}  dxe4 {[%clk 0:01:59]} 19. fxe4 {[%clk 0:02:26]}  cxd4 {[%clk 0:01:54]} 20. e5 {[%clk 0:02:25]}  Nh7 {[%clk 0:01:46]} 21. Bxd4 {[%clk 0:02:22]}  Nc5 {[%clk 0:01:44]} 22. Qe3 {[%clk 0:02:18]}  Qc7 {[%clk 0:01:38]} 23. b4 {[%clk 0:02:11]}  Nd7 {[%clk 0:01:34]} 24. Rc1 {[%clk 0:01:59]}  Ra2 {[%clk 0:01:32]} 25. Bg2 {[%clk 0:01:52]}  Rc8 {[%clk 0:01:24]} 26. Re2 {[%clk 0:01:46]}  Rxe2 {[%clk 0:01:10]} 27. Qxe2 {[%clk 0:01:47]}  Qa7 {[%clk 0:01:01]} 28. Ra1 {[%clk 0:01:45]}  Qc7 {[%clk 0:01:01]} 29. Rc1 {[%clk 0:01:39]}  Qa7 {[%clk 0:01:01]} 30. Qb2 {[%clk 0:01:33]}  Qc7 {[%clk 0:00:51]} 31. c5 {[%clk 0:01:21]}  bxc5 {[%clk 0:00:48]} 32. bxc5 {[%clk 0:01:22]}  Rb8 {[%clk 0:00:41]} 33. Qc3 {[%clk 0:01:18]}  Nhf8 {[%clk 0:00:36]} 34. c6 {[%clk 0:01:18]}  Nb6 {[%clk 0:00:36]} 35. Qa5 {[%clk 0:01:18]}  Nd5 {[%clk 0:00:32]} 36. Qxc7 {[%clk 0:01:18]}  Nxc7 {[%clk 0:00:33]} 37. Bc5 {[%clk 0:01:18]}  Nd5 {[%clk 0:00:27]} 38. Bd6 {[%clk 0:01:08]}  Rc8 {[%clk 0:00:27]} 39. Kf2 {[%clk 0:01:05]}  f6 {[%clk 0:00:26]} 40. Be4 {[%clk 0:01:00]}  Kf7 {[%clk 0:00:23]} 41. h4 {[%clk 0:00:57]}  g5 {[%clk 0:00:19]} 42. hxg5 {[%clk 0:00:57]}  f5 {[%clk 0:00:17]} 43. Bxd5 {[%clk 0:00:53]}  exd5 {[%clk 0:00:17]} 44. Bxf8 {[%clk 0:00:54]}  Kxf8 {[%clk 0:00:16]} 45. g6 {[%clk 0:00:48]}  Rc7 {[%clk 0:00:14]} 46. Ke3 {[%clk 0:00:48]}  Ke7 {[%clk 0:00:14]} 47. Kd4 {[%clk 0:00:48]}  Kd8 {[%clk 0:00:12]} 48. Kxd5 {[%clk 0:00:48]}  Ra7 {[%clk 0:00:11]} 49. Ke6 {[%clk 0:00:44]}  Ra3 {[%clk 0:00:12]} 50. Kxf5 {[%clk 0:00:40]}  Rxg3 {[%clk 0:00:12]} 51. Rd1+ {[%clk 0:00:40]}  Kc7 {[%clk 0:00:10]} 52. Rd7+ {[%clk 0:00:41]}  Kxc6 {[%clk 0:00:10]} 53. Rxg7 {[%clk 0:00:42]}  Rf3+ {[%clk 0:00:09]} 54. Ke6 {[%clk 0:00:41]}  Rg3 {[%clk 0:00:10]} 55. Rg8 {[%clk 0:00:42]}  Kb7 {[%clk 0:00:10]} 56. g7 {[%clk 0:00:34]}  Rg1 {[%clk 0:00:09]} 57. Re8 {[%clk 0:00:33]}  Rg6+ {[%clk 0:00:07]} 58. Kf7 {[%clk 0:00:33]} 1-0


[Site "https://www.chess.com"]

[Event "Titled Tuesday Blitz November 01 Early 2022"]
[White "Tleptsok, Ruslan"]
[Black "Gabrielian, Artur"]
[WhiteFideId "24104485"]
[BlackFideId "4131002"]
[WhiteElo "2130"]
[BlackElo "2432"]
[Result "1/2-1/2"]
[Round "09"]
[TimeControl "180+1"]
[Date "2022.11.02"]
[WhiteClock "0:00:11"]
[BlackClock "0:00:08"]

1. e4 {[%clk 0:03:00]}  c5 {[%clk 0:02:59]} 2. Nf3 {[%clk 0:03:01]}  d6 {[%clk 0:02:59]} 3. c3 {[%clk 0:03:01]}  Nf6 {[%clk 0:02:59]} 4. Bc4 {[%clk 0:03:00]}  e6 {[%clk 0:02:59]} 5. Qe2 {[%clk 0:03:00]}  Be7 {[%clk 0:02:59]} 6. d4 {[%clk 0:02:59]}  cxd4 {[%clk 0:02:56]} 7. cxd4 {[%clk 0:03:00]}  O-O {[%clk 0:02:54]} 8. e5 {[%clk 0:03:00]}  Nd5 {[%clk 0:02:48]} 9. O-O {[%clk 0:02:58]}  Nc6 {[%clk 0:02:48]} 10. Nc3 {[%clk 0:02:58]}  Nxc3 {[%clk 0:02:45]} 11. bxc3 {[%clk 0:02:59]}  dxe5 {[%clk 0:02:46]} 12. Nxe5 {[%clk 0:02:57]}  Nxe5 {[%clk 0:02:43]} 13. Qxe5 {[%clk 0:02:58]}  Bf6 {[%clk 0:02:42]} 14. Qe4 {[%clk 0:02:56]}  Bd7 {[%clk 0:02:34]} 15. Bd3 {[%clk 0:02:55]}  g6 {[%clk 0:02:34]} 16. Bh6 {[%clk 0:02:54]}  Re8 {[%clk 0:02:32]} 17. Rfe1 {[%clk 0:02:44]}  Rc8 {[%clk 0:02:32]} 18. Rac1 {[%clk 0:02:33]}  Bc6 {[%clk 0:02:30]} 19. Qf4 {[%clk 0:02:32]}  Bg7 {[%clk 0:02:23]} 20. Bxg7 {[%clk 0:02:30]}  Kxg7 {[%clk 0:02:23]} 21. h4 {[%clk 0:02:28]}  Qf6 {[%clk 0:02:21]} 22. Qg3 {[%clk 0:02:26]}  Red8 {[%clk 0:02:17]} 23. Re5 {[%clk 0:02:15]}  Rd5 {[%clk 0:02:16]} 24. Rce1 {[%clk 0:02:12]}  Rcd8 {[%clk 0:02:15]} 25. h5 {[%clk 0:02:10]}  Rxe5 {[%clk 0:02:13]} 26. Rxe5 {[%clk 0:02:10]}  Rd5 {[%clk 0:02:12]} 27. f4 {[%clk 0:02:00]}  Qd8 {[%clk 0:01:47]} 28. f5 {[%clk 0:01:54]}  exf5 {[%clk 0:01:43]} 29. Bxf5 {[%clk 0:01:54]}  Qf6 {[%clk 0:01:37]} 30. hxg6 {[%clk 0:01:52]}  hxg6 {[%clk 0:01:36]} 31. Be4 {[%clk 0:01:26]}  Rd6 {[%clk 0:01:22]} 32. Bxc6 {[%clk 0:01:17]}  Rxc6 {[%clk 0:01:22]} 33. Qd3 {[%clk 0:01:17]}  Qf4 {[%clk 0:01:17]} 34. Re1 {[%clk 0:01:11]}  Ra6 {[%clk 0:01:07]} 35. Re2 {[%clk 0:01:11]}  Rf6 {[%clk 0:01:04]} 36. d5 {[%clk 0:00:58]}  Qf1+ {[%clk 0:00:43]} 37. Kh2 {[%clk 0:00:58]}  Rf4 {[%clk 0:00:42]} 38. Qd2 {[%clk 0:00:40]}  Rh4+ {[%clk 0:00:10]} 39. Kg3 {[%clk 0:00:40]}  Qh1 {[%clk 0:00:10]} 40. d6 {[%clk 0:00:38]}  Qh2+ {[%clk 0:00:09]} 41. Kf3 {[%clk 0:00:37]}  Rh5 {[%clk 0:00:09]} 42. Qd4+ {[%clk 0:00:35]}  Kh7 {[%clk 0:00:09]} 43. Ke3 {[%clk 0:00:29]}  Qg1+ {[%clk 0:00:08]} 44. Kd2 {[%clk 0:00:27]}  Qxd4+ {[%clk 0:00:07]} 45. cxd4 {[%clk 0:00:28]}  Rd5 {[%clk 0:00:08]} 46. Re7 {[%clk 0:00:25]}  Rxd4+ {[%clk 0:00:06]} 47. Kc3 {[%clk 0:00:26]}  Rxd6 {[%clk 0:00:06]} 48. Rxf7+ {[%clk 0:00:25]}  Kh6 {[%clk 0:00:07]} 49. Rxb7 {[%clk 0:00:26]}  Ra6 {[%clk 0:00:08]} 50. Kb2 {[%clk 0:00:16]}  Kh5 {[%clk 0:00:08]} 51. Kb3 {[%clk 0:00:15]}  g5 {[%clk 0:00:08]} 52. a4 {[%clk 0:00:15]}  Kh4 {[%clk 0:00:09]} 53. Rg7 {[%clk 0:00:12]}  g4 {[%clk 0:00:09]} 54. Kb4 {[%clk 0:00:12]}  Kg3 {[%clk 0:00:07]} 55. Kb5 {[%clk 0:00:12]}  Rb6+ {[%clk 0:00:07]} 56. Ka5 {[%clk 0:00:13]}  Rb2 {[%clk 0:00:06]} 57. Rxa7 {[%clk 0:00:12]}  Kxg2 {[%clk 0:00:06]} 58. Rg7 {[%clk 0:00:12]}  g3 {[%clk 0:00:07]} 59. Ka6 {[%clk 0:00:13]}  Kf3 {[%clk 0:00:07]} 60. a5 {[%clk 0:00:13]}  Rb4 {[%clk 0:00:07]} 61. Ka7 {[%clk 0:00:13]}  Rg4 {[%clk 0:00:06]} 62. Rf7+ {[%clk 0:00:12]}  Ke2 {[%clk 0:00:07]} 63. Re7+ {[%clk 0:00:12]}  Kd2 {[%clk 0:00:07]} 64. Rd7+ {[%clk 0:00:12]}  Kc2 {[%clk 0:00:08]} 65. Rc7+ {[%clk 0:00:13]}  Kb2 {[%clk 0:00:08]} 66. Rb7+ {[%clk 0:00:13]}  Ka2 {[%clk 0:00:09]} 67. Re7 {[%clk 0:00:11]}  g2 {[%clk 0:00:09]} 68. Re1 {[%clk 0:00:10]}  g1=Q+ {[%clk 0:00:09]} 69. Rxg1 {[%clk 0:00:10]}  Rxg1 {[%clk 0:00:10]} 70. a6 {[%clk 0:00:11]}  Kb3 {[%clk 0:00:10]} 71. Kb7 {[%clk 0:00:11]}  Rg7+ {[%clk 0:00:10]} 72. Kb8 {[%clk 0:00:10]}  Rg8+ {[%clk 0:00:09]} 73. Kb7 {[%clk 0:00:11]}  Kb4 {[%clk 0:00:10]} 74. a7 {[%clk 0:00:11]}  Kb5 {[%clk 0:00:08]} 75. a8=Q {[%clk 0:00:10]}  Rxa8 {[%clk 0:00:08]} 76. Kxa8 {[%clk 0:00:11]} 1/2-1/2


[Site "https://www.chess.com"]

[Event "Titled Tuesday Blitz November 01 Early 2022"]
[White "Vachylia, Andrii"]
[Black "Le, Tuan Minh"]
[WhiteFideId "14137224"]
[BlackFideId "12401153"]
[WhiteElo "2318"]
[BlackElo "2530"]
[Result "0-1"]
[Round "09"]
[TimeControl "180+1"]
[Date "2022.11.01"]
[WhiteClock "0:00:01"]
[BlackClock "0:01:46"]

1. Nf3 {[%clk 0:03:00]}  d5 {[%clk 0:03:00]} 2. b3 {[%clk 0:03:01]}  Nf6 {[%clk 0:03:00]} 3. Bb2 {[%clk 0:03:01]}  c6 {[%clk 0:03:01]} 4. c4 {[%clk 0:03:02]}  Bf5 {[%clk 0:03:01]} 5. e3 {[%clk 0:02:55]}  e6 {[%clk 0:03:01]} 6. d3 {[%clk 0:02:55]}  h6 {[%clk 0:03:01]} 7. Nbd2 {[%clk 0:02:55]}  Be7 {[%clk 0:03:00]} 8. Be2 {[%clk 0:02:53]}  O-O {[%clk 0:02:59]} 9. O-O {[%clk 0:02:52]}  Nbd7 {[%clk 0:03:00]} 10. a3 {[%clk 0:02:52]}  a5 {[%clk 0:03:00]} 11. Re1 {[%clk 0:02:48]}  Bh7 {[%clk 0:03:00]} 12. Bf1 {[%clk 0:02:48]}  Nc5 {[%clk 0:02:59]} 13. Ne5 {[%clk 0:02:23]}  Nfd7 {[%clk 0:02:35]} 14. Nxd7 {[%clk 0:02:12]}  Qxd7 {[%clk 0:02:35]} 15. Nf3 {[%clk 0:02:13]}  dxc4 {[%clk 0:02:18]} 16. Ne5 {[%clk 0:02:08]}  Qc7 {[%clk 0:02:18]} 17. bxc4 {[%clk 0:01:23]}  Bf6 {[%clk 0:02:15]} 18. f4 {[%clk 0:01:06]}  Rfd8 {[%clk 0:02:15]} 19. d4 {[%clk 0:01:04]}  a4 {[%clk 0:02:16]} 20. Qh5 {[%clk 0:00:50]}  Nb3 {[%clk 0:02:11]} 21. Rad1 {[%clk 0:00:50]}  Bc2 {[%clk 0:02:11]} 22. Ng4 {[%clk 0:00:47]}  Qe7 {[%clk 0:02:06]} 23. Bd3 {[%clk 0:00:39]}  Bxd1 {[%clk 0:01:59]} 24. Rxd1 {[%clk 0:00:33]}  c5 {[%clk 0:01:59]} 25. Nxh6+ {[%clk 0:00:02]}  gxh6 {[%clk 0:01:59]} 26. Qxh6 {[%clk 0:00:03]}  Bg7 {[%clk 0:02:00]} 27. Qh7+ {[%clk 0:00:03]}  Kf8 {[%clk 0:02:00]} 28. Bc3 {[%clk 0:00:01]}  cxd4 {[%clk 0:01:46]} 0-1


[Site "https://www.chess.com"]

[Event "Titled Tuesday Blitz November 01 Early 2022"]
[White "Vakhania, Alexandra"]
[Black "D`Arruda, Ricardo D."]
[WhiteFideId "13602560"]
[BlackFideId "100692"]
[WhiteElo "2053"]
[BlackElo "2484"]
[Result "0-1"]
[Round "09"]
[TimeControl "180+1"]
[Date "2022.11.02"]
[WhiteClock "0:01:48"]
[BlackClock "0:01:12"]

1. e4 {[%clk 0:02:55]}  c5 {[%clk 0:02:55]} 2. Nc3 {[%clk 0:02:53]}  Nc6 {[%clk 0:02:52]} 3. f4 {[%clk 0:02:52]}  e6 {[%clk 0:02:50]} 4. Nf3 {[%clk 0:02:51]}  Nf6 {[%clk 0:02:47]} 5. Bb5 {[%clk 0:02:50]}  Nd4 {[%clk 0:02:40]} 6. O-O {[%clk 0:02:42]}  Nxb5 {[%clk 0:02:39]} 7. Nxb5 {[%clk 0:02:41]}  Nxe4 {[%clk 0:02:29]} 8. d3 {[%clk 0:02:37]}  Nf6 {[%clk 0:02:27]} 9. f5 {[%clk 0:02:37]}  Be7 {[%clk 0:02:13]} 10. Bg5 {[%clk 0:02:25]}  a6 {[%clk 0:02:08]} 11. Nc3 {[%clk 0:02:24]}  O-O {[%clk 0:02:04]} 12. fxe6 {[%clk 0:02:20]}  dxe6 {[%clk 0:02:00]} 13. Qe1 {[%clk 0:02:20]}  b5 {[%clk 0:01:52]} 14. Qh4 {[%clk 0:02:18]}  Bb7 {[%clk 0:01:51]} 15. Rae1 {[%clk 0:02:17]}  h6 {[%clk 0:01:42]} 16. Bxh6 {[%clk 0:02:05]}  gxh6 {[%clk 0:01:43]} 17. Qxh6 {[%clk 0:02:05]}  Nh7 {[%clk 0:01:42]} 18. Re5 {[%clk 0:02:02]}  Bxf3 {[%clk 0:01:30]} 19. Rxf3 {[%clk 0:02:00]}  Qd4+ {[%clk 0:01:30]} 20. Ree3 {[%clk 0:01:52]}  Bg5 {[%clk 0:01:25]} 21. Rg3 {[%clk 0:01:51]}  Qxe3+ {[%clk 0:01:24]} 22. Rxe3 {[%clk 0:01:50]}  Bxh6 {[%clk 0:01:24]} 23. Rg3+ {[%clk 0:01:48]}  Kh8 {[%clk 0:01:22]} 24. Ne4 {[%clk 0:01:48]}  Rac8 {[%clk 0:01:12]} 0-1


[Site "https://www.chess.com"]

[Event "Titled Tuesday Blitz November 01 Early 2022"]
[White "Vargas, Mauricio"]
[Black "Tworuszka, Michal"]
[WhiteFideId "4404572"]
[BlackFideId "1117858"]
[WhiteElo "2025"]
[BlackElo "2373"]
[Result "1-0"]
[Round "09"]
[TimeControl "180+1"]
[Date "2022.11.02"]
[WhiteClock "0:01:13"]
[BlackClock "0:00:01"]

1. e4 {[%clk 0:02:59]}  c5 {[%clk 0:02:56]} 2. Nc3 {[%clk 0:02:58]}  Nc6 {[%clk 0:02:55]} 3. f4 {[%clk 0:02:59]}  d6 {[%clk 0:02:55]} 4. Nf3 {[%clk 0:02:59]}  g6 {[%clk 0:02:55]} 5. Bb5 {[%clk 0:03:00]}  Bg7 {[%clk 0:02:55]} 6. Bxc6+ {[%clk 0:03:01]}  bxc6 {[%clk 0:02:55]} 7. O-O {[%clk 0:03:02]}  e6 {[%clk 0:02:45]} 8. d3 {[%clk 0:02:59]}  Ne7 {[%clk 0:02:43]} 9. Qe1 {[%clk 0:02:58]}  O-O {[%clk 0:02:42]} 10. Rb1 {[%clk 0:02:53]}  d5 {[%clk 0:02:36]} 11. e5 {[%clk 0:02:49]}  Ba6 {[%clk 0:02:22]} 12. b3 {[%clk 0:02:48]}  Rb8 {[%clk 0:02:16]} 13. Na4 {[%clk 0:02:48]}  c4 {[%clk 0:02:08]} 14. Nc5 {[%clk 0:02:47]}  Bc8 {[%clk 0:01:43]} 15. d4 {[%clk 0:02:46]}  cxb3 {[%clk 0:01:40]} 16. axb3 {[%clk 0:02:45]}  Qb6 {[%clk 0:01:30]} 17. Bd2 {[%clk 0:02:41]}  Nf5 {[%clk 0:00:40]} 18. Ba5 {[%clk 0:02:34]}  Qb5 {[%clk 0:00:40]} 19. b4 {[%clk 0:02:03]}  Ba6 {[%clk 0:00:20]} 20. Rf2 {[%clk 0:01:53]}  h5 {[%clk 0:00:11]} 21. Rd2 {[%clk 0:01:46]}  Rfc8 {[%clk 0:00:09]} 22. h3 {[%clk 0:01:32]}  Bf8 {[%clk 0:00:04]} 23. g4 {[%clk 0:01:29]}  Bxc5 {[%clk 0:00:02]} 24. dxc5 {[%clk 0:01:21]}  hxg4 {[%clk 0:00:01]} 25. hxg4 {[%clk 0:01:20]}  Ne7 {[%clk 0:00:01]} 26. Qh4 {[%clk 0:01:15]}  Kg7 {[%clk 0:00:01]} 27. Qf6+ {[%clk 0:01:13]}  Kf8 {[%clk 0:00:01]} 28. Ng5 {[%clk 0:01:13]} 1-0


[Site "https://www.chess.com"]

[Event "Titled Tuesday Blitz November 01 Early 2022"]
[White "Vlassov, Nikolai"]
[Black "Silva Lucena, Cristian"]
[WhiteFideId "4103360"]
[BlackFideId "2232588"]
[WhiteElo "2324"]
[BlackElo "2223"]
[Result "1-0"]
[Round "09"]
[TimeControl "180+1"]
[Date "2022.11.02"]
[WhiteClock "0:00:41"]
[BlackClock "0:00:06"]

1. e4 {[%clk 0:03:00]}  c5 {[%clk 0:02:42]} 2. c3 {[%clk 0:03:00]}  Nf6 {[%clk 0:02:42]} 3. e5 {[%clk 0:03:01]}  Nd5 {[%clk 0:02:42]} 4. d4 {[%clk 0:03:02]}  cxd4 {[%clk 0:02:43]} 5. cxd4 {[%clk 0:03:03]}  d6 {[%clk 0:02:43]} 6. Bc4 {[%clk 0:03:03]}  Nb6 {[%clk 0:02:43]} 7. Bb3 {[%clk 0:03:03]}  dxe5 {[%clk 0:02:39]} 8. Qh5 {[%clk 0:03:03]}  e6 {[%clk 0:02:28]} 9. dxe5 {[%clk 0:03:03]}  Nc6 {[%clk 0:02:23]} 10. Nc3 {[%clk 0:03:03]}  Nd4 {[%clk 0:02:16]} 11. Nf3 {[%clk 0:03:02]}  Nxb3 {[%clk 0:02:14]} 12. axb3 {[%clk 0:03:03]}  Qd3 {[%clk 0:01:53]} 13. Bg5 {[%clk 0:03:01]}  Bb4 {[%clk 0:01:50]} 14. Rd1 {[%clk 0:02:53]}  Bxc3+ {[%clk 0:01:49]} 15. bxc3 {[%clk 0:02:53]}  Qxc3+ {[%clk 0:01:50]} 16. Kf1 {[%clk 0:02:50]}  Bd7 {[%clk 0:01:50]} 17. Nd4 {[%clk 0:02:43]}  Nd5 {[%clk 0:01:37]} 18. h4 {[%clk 0:02:37]}  Qc7 {[%clk 0:00:58]} 19. Bc1 {[%clk 0:02:19]}  Rc8 {[%clk 0:00:52]} 20. Ba3 {[%clk 0:02:13]}  g6 {[%clk 0:00:44]} 21. Qh6 {[%clk 0:02:08]}  Qxe5 {[%clk 0:00:42]} 22. Rh3 {[%clk 0:02:00]}  Qf4 {[%clk 0:00:33]} 23. Qg7 {[%clk 0:01:57]}  Qf6 {[%clk 0:00:33]} 24. Qh6 {[%clk 0:01:43]}  Qf4 {[%clk 0:00:24]} 25. Qg7 {[%clk 0:01:40]}  Qf6 {[%clk 0:00:24]} 26. Qxf6 {[%clk 0:01:17]}  Nxf6 {[%clk 0:00:24]} 27. Re3 {[%clk 0:01:16]}  Nd5 {[%clk 0:00:23]} 28. Re5 {[%clk 0:01:16]}  f6 {[%clk 0:00:19]} 29. Rxd5 {[%clk 0:01:14]}  exd5 {[%clk 0:00:19]} 30. Re1+ {[%clk 0:01:15]}  Kd8 {[%clk 0:00:19]} 31. Be7+ {[%clk 0:01:14]}  Kc7 {[%clk 0:00:19]} 32. Bxf6 {[%clk 0:01:14]}  Rhe8 {[%clk 0:00:19]} 33. Be5+ {[%clk 0:01:14]}  Kb6 {[%clk 0:00:18]} 34. f4 {[%clk 0:01:14]}  Bb5+ {[%clk 0:00:18]} 35. Kf2 {[%clk 0:01:13]}  a6 {[%clk 0:00:16]} 36. h5 {[%clk 0:01:13]}  gxh5 {[%clk 0:00:15]} 37. Rh1 {[%clk 0:01:13]}  Bd3 {[%clk 0:00:15]} 38. Rxh5 {[%clk 0:01:12]}  Bg6 {[%clk 0:00:15]} 39. Rh6 {[%clk 0:01:11]}  Rf8 {[%clk 0:00:13]} 40. g4 {[%clk 0:01:10]}  Ka7 {[%clk 0:00:11]} 41. f5 {[%clk 0:01:10]}  Rc3 {[%clk 0:00:10]} 42. Kg2 {[%clk 0:01:05]}  Ka8 {[%clk 0:00:08]} 43. fxg6 {[%clk 0:01:04]}  hxg6 {[%clk 0:00:09]} 44. Rxg6 {[%clk 0:01:04]}  Re8 {[%clk 0:00:10]} 45. Rg5 {[%clk 0:00:55]}  Re3 {[%clk 0:00:10]} 46. Bf6 {[%clk 0:00:53]}  Rd3 {[%clk 0:00:09]} 47. Rxd5 {[%clk 0:00:49]}  Re2+ {[%clk 0:00:07]} 48. Nxe2 {[%clk 0:00:49]}  Rxd5 {[%clk 0:00:06]} 49. g5 {[%clk 0:00:49]}  Rd6 {[%clk 0:00:04]} 50. Nf4 {[%clk 0:00:44]}  b5 {[%clk 0:00:04]} 51. Be5 {[%clk 0:00:43]}  Rd2+ {[%clk 0:00:03]} 52. Kf3 {[%clk 0:00:42]}  a5 {[%clk 0:00:04]} 53. g6 {[%clk 0:00:43]}  Rd7 {[%clk 0:00:04]} 54. g7 {[%clk 0:00:43]}  Rxg7 {[%clk 0:00:04]} 55. Bxg7 {[%clk 0:00:43]}  Kb7 {[%clk 0:00:05]} 56. Ke4 {[%clk 0:00:43]}  Kc6 {[%clk 0:00:06]} 57. Kd4 {[%clk 0:00:43]}  a4 {[%clk 0:00:05]} 58. b4 {[%clk 0:00:43]}  a3 {[%clk 0:00:05]} 59. Ke5 {[%clk 0:00:41]}  a2 {[%clk 0:00:05]} 60. Ke6 {[%clk 0:00:42]}  Kb6 {[%clk 0:00:05]} 61. Kd6 {[%clk 0:00:41]}  Ka6 {[%clk 0:00:06]} 62. Kc6 {[%clk 0:00:42]}  Ka7 {[%clk 0:00:06]} 63. Kxb5 {[%clk 0:00:41]} 1-0


[Site "https://www.chess.com"]

[Event "Titled Tuesday Blitz November 01 Early 2022"]
[White "Vovk, Orest"]
[Black "Ristic, Nebojsa B"]
[WhiteFideId "14113490"]
[BlackFideId "935468"]
[WhiteElo "2215"]
[BlackElo "2320"]
[Result "1-0"]
[Round "09"]
[TimeControl "180+1"]
[Date "2022.11.02"]
[WhiteClock "0:00:11"]
[BlackClock "0:00:01"]

1. h4 {[%clk 0:02:55]}  d5 {[%clk 0:02:59]} 2. h5 {[%clk 0:02:55]}  e5 {[%clk 0:02:55]} 3. h6 {[%clk 0:02:55]}  Nxh6 {[%clk 0:02:53]} 4. d4 {[%clk 0:02:56]}  e4 {[%clk 0:02:47]} 5. Bxh6 {[%clk 0:02:44]}  gxh6 {[%clk 0:02:46]} 6. e3 {[%clk 0:02:45]}  Nc6 {[%clk 0:02:39]} 7. Ne2 {[%clk 0:02:41]}  Bg4 {[%clk 0:02:38]} 8. a3 {[%clk 0:02:40]}  a5 {[%clk 0:02:36]} 9. c4 {[%clk 0:02:40]}  dxc4 {[%clk 0:02:07]} 10. Qc2 {[%clk 0:02:39]}  Be6 {[%clk 0:01:57]} 11. Qxe4 {[%clk 0:02:28]}  Bg7 {[%clk 0:01:39]} 12. Nbc3 {[%clk 0:02:27]}  Ne7 {[%clk 0:01:39]} 13. Rh5 {[%clk 0:02:23]}  c6 {[%clk 0:01:36]} 14. Nf4 {[%clk 0:02:23]}  Qd7 {[%clk 0:01:34]} 15. Nxe6 {[%clk 0:02:22]}  Qxe6 {[%clk 0:01:32]} 16. Qxe6 {[%clk 0:02:20]}  fxe6 {[%clk 0:01:30]} 17. Bxc4 {[%clk 0:02:21]}  Nd5 {[%clk 0:01:26]} 18. Bxd5 {[%clk 0:02:12]}  exd5 {[%clk 0:01:25]} 19. Ne2 {[%clk 0:02:09]}  O-O {[%clk 0:01:19]} 20. g3 {[%clk 0:02:09]}  Rae8 {[%clk 0:01:13]} 21. Rd1 {[%clk 0:02:03]}  Re4 {[%clk 0:01:09]} 22. Nf4 {[%clk 0:02:00]}  Rfe8 {[%clk 0:01:04]} 23. Kf1 {[%clk 0:01:59]}  a4 {[%clk 0:00:59]} 24. b3 {[%clk 0:01:53]}  axb3 {[%clk 0:00:57]} 25. Rb1 {[%clk 0:01:53]}  Ra8 {[%clk 0:00:57]} 26. Rxb3 {[%clk 0:01:53]}  Re7 {[%clk 0:00:53]} 27. Kg2 {[%clk 0:01:49]}  Ra6 {[%clk 0:00:50]} 28. Rh1 {[%clk 0:01:42]}  Bf8 {[%clk 0:00:47]} 29. Rhb1 {[%clk 0:01:41]}  b5 {[%clk 0:00:44]} 30. Rc1 {[%clk 0:01:39]}  Rf7 {[%clk 0:00:39]} 31. Ne6 {[%clk 0:01:28]}  Bxa3 {[%clk 0:00:37]} 32. Ra1 {[%clk 0:01:23]}  Rfa7 {[%clk 0:00:35]} 33. Rh1 {[%clk 0:01:13]}  Kf7 {[%clk 0:00:27]} 34. Rxh6 {[%clk 0:01:13]}  b4 {[%clk 0:00:26]} 35. Nc5 {[%clk 0:01:10]}  Ra5 {[%clk 0:00:24]} 36. Rxc6 {[%clk 0:01:03]}  Re7 {[%clk 0:00:20]} 37. Rd6 {[%clk 0:00:57]}  Ra8 {[%clk 0:00:17]} 38. Rxd5 {[%clk 0:00:55]}  Rg8 {[%clk 0:00:16]} 39. Rf5+ {[%clk 0:00:49]}  Kg6 {[%clk 0:00:15]} 40. g4 {[%clk 0:00:48]}  Reg7 {[%clk 0:00:13]} 41. f4 {[%clk 0:00:43]}  h6 {[%clk 0:00:12]} 42. Kf3 {[%clk 0:00:43]}  Kh7 {[%clk 0:00:12]} 43. g5 {[%clk 0:00:37]}  hxg5 {[%clk 0:00:12]} 44. Ne6 {[%clk 0:00:37]}  g4+ {[%clk 0:00:10]} 45. Kg3 {[%clk 0:00:37]}  Re7 {[%clk 0:00:09]} 46. Rh5+ {[%clk 0:00:29]}  Kg6 {[%clk 0:00:08]} 47. Rg5+ {[%clk 0:00:29]}  Kf7 {[%clk 0:00:09]} 48. Rxg8 {[%clk 0:00:30]}  Kxg8 {[%clk 0:00:10]} 49. f5 {[%clk 0:00:27]}  Bc1 {[%clk 0:00:10]} 50. Kxg4 {[%clk 0:00:26]}  Bd2 {[%clk 0:00:10]} 51. e4 {[%clk 0:00:25]}  Bc3 {[%clk 0:00:08]} 52. d5 {[%clk 0:00:24]}  Rh7 {[%clk 0:00:07]} 53. Rb1 {[%clk 0:00:13]}  Kf7 {[%clk 0:00:07]} 54. Ng5+ {[%clk 0:00:12]}  Kg7 {[%clk 0:00:07]} 55. Nxh7 {[%clk 0:00:13]}  Kxh7 {[%clk 0:00:08]} 56. d6 {[%clk 0:00:13]}  Kg7 {[%clk 0:00:08]} 57. d7 {[%clk 0:00:14]}  Bf6 {[%clk 0:00:08]} 58. Rxb4 {[%clk 0:00:13]}  Bd8 {[%clk 0:00:08]} 59. Rb8 {[%clk 0:00:13]}  Be7 {[%clk 0:00:05]} 60. d8=B {[%clk 0:00:12]}  Bd6 {[%clk 0:00:05]} 61. Ra8 {[%clk 0:00:11]}  Be5 {[%clk 0:00:04]} 62. Bg5 {[%clk 0:00:10]}  Kf7 {[%clk 0:00:04]} 63. Bf4 {[%clk 0:00:10]}  Bd4 {[%clk 0:00:04]} 64. e5 {[%clk 0:00:10]}  Ke7 {[%clk 0:00:04]} 65. Rb8 {[%clk 0:00:10]}  Kf7 {[%clk 0:00:05]} 66. Rb7+ {[%clk 0:00:10]}  Kg8 {[%clk 0:00:04]} 67. f6 {[%clk 0:00:11]}  Kh8 {[%clk 0:00:03]} 68. Kf5 {[%clk 0:00:11]}  Bc5 {[%clk 0:00:03]} 69. e6 {[%clk 0:00:11]}  Ba3 {[%clk 0:00:01]} 70. e7 {[%clk 0:00:11]} 1-0


[Site "https://www.chess.com"]